fUST/lending_fUST_20251012
["ID","MTS","AMOUNT","RATE_DAILY","PERIOD"]
[391005512,1760284246472,-217.23489935,0.000252,2]
[391005514,1760284246483,-1366.94760757,0.000252,2]
[391005516,1760284246493,-1558.07427699,0.000252,2]
[391005518,1760284246502,-1702.85527968,0.000252,2]
[391005519,1760284246513,-663.37244482,0.000252,2]
[391005520,1760284246522,-7480.77267243,0.000252,2]
[391005521,1760284246533,-1153.22401483,0.000252,2]
[391005522,1760284246543,-939.28471625,0.000252,2]
[391005523,1760284246552,-675.14,0.00025205,7]
[391005524,1760284246562,-949.33798078,0.00025205,10]
[391005525,1760284246572,-250.0,0.00025205,2]
[391005526,1760284246581,-270.27805845,0.00025232,12]
[391005527,1760284246590,-666.66666667,0.00025244,14]
[391005528,1760284246599,-666.66666667,0.00025244,14]
[391005529,1760284246608,-166.66666667,0.00025244,14]
[391005530,1760284246618,-450.0,0.00025268,2]
[391005531,1760284246627,-150.0,0.00025273,2]
[391005532,1760284246636,-500.0,0.00025284,7]
[391005533,1760284246645,-11925.77920675,0.000253,7]
[391005534,1760284246874,-147372.21079325,0.000253,7]
[391005535,1760284246884,-151.0,0.000253,7]
[391005536,1760284246893,-151.0,0.000253,7]
[391005537,1760284246901,-500.0,0.0002535,7]
[391005538,1760284246910,-500.0,0.00025356,2]
[391005539,1760284246919,-2878.45,0.00025362,2]
[391005540,1760284246928,-270.27805845,0.0002538,14]
[391005541,1760284246937,-666.66666667,0.00025391,16]
[391005542,1760284246946,-666.66666667,0.00025391,16]
[391005543,1760284246955,-666.66666667,0.00025391,16]
[391005544,1760284246963,-666.66666667,0.00025391,16]
[391005545,1760284246972,-162.51263029,0.00025391,16]
[391005546,1760284246981,-162.51263029,0.00025391,16]
[391005547,1760284246990,-1558.07427699,0.000254,2]
[391005548,1760284246999,-1702.85527968,0.000254,2]
[391005549,1760284247008,-7480.77267243,0.000254,2]
[391005550,1760284247017,-173.642988,0.000254,7]
[391005551,1760284247026,-151.0,0.000254,7]
[391005552,1760284247035,-207.608553,0.000254,7]
[391005553,1760284247044,-207.608553,0.000254,7]
[391005554,1760284247053,-151.0,0.000254,7]
[391005555,1760284247062,-207.608553,0.000254,7]
[391005556,1760284247071,-207.60855757,0.000254,7]
[391005557,1760284247080,-155.007616,0.000254,7]
[391005558,1760284247089,-151.0,0.000254,7]
[391005559,1760284247099,-151.0,0.000254,7]
[391005560,1760284247108,-151.0,0.000254,7]
[391005561,1760284247117,-151.487076,0.000254,7]
[391005562,1760284247125,-151.487076,0.000254,7]
[391005563,1760284247134,-151.487076,0.000254,7]
[391005564,1760284247143,-151.487083,0.000254,7]
[391005565,1760284247152,-158.926823,0.00025423,30]
[391005566,1760284247161,-158.926823,0.00025453,7]
[391005567,1760284247170,-500.0,0.00025456,5]
[391005568,1760284247179,-675.14,0.00025479,8]
[391005569,1760284247188,-151.0,0.00025479,7]
[391005570,1760284247197,-151.0,0.00025479,7]
[391005571,1760284247206,-151.0,0.00025479,7]
[391005572,1760284247215,-151.0,0.00025479,7]
[391005573,1760284247224,-151.0,0.00025479,7]
[391005574,1760284247233,-151.0,0.00025479,7]
[391005575,1760284247242,-257.421163,0.00025479,7]
[391005576,1760284247251,-257.421163,0.00025479,7]
[391005577,1760284247260,-257.421163,0.00025479,7]
[391005578,1760284247270,-257.421159,0.00025479,7]
[391005579,1760284247280,-151.0,0.00025479,7]
[391005580,1760284247289,-282.061602,0.00025479,7]
[391005581,1760284247299,-1459.581874,0.00025479,7]
[391005582,1760284247309,-666.66666667,0.00025538,18]
[391005583,1760284247319,-666.66666667,0.00025538,18]
[391005584,1760284247328,-666.66666667,0.00025538,18]
[391005585,1760284247337,-166.66666667,0.00025538,18]
[391005586,1760284247346,-166.66666667,0.00025538,18]
[391005587,1760284247355,-166.66666667,0.00025538,18]
[391005588,1760284247365,-660.0,0.00025565,2]
[391005589,1760284247374,-151.0,0.00025616,7]
[391005590,1760284247383,-247.727918,0.00025616,7]
[391005591,1760284247392,-179.095133,0.00025616,7]
[391005592,1760284247402,-179.095133,0.00025616,7]
[391005593,1760284247411,-179.095133,0.00025616,7]
[391005594,1760284247421,-179.095138,0.00025616,7]
[391005595,1760284247432,-151.0,0.00025616,7]
[391005596,1760284247443,-151.0,0.00025616,7]
[391005597,1760284247452,-151.0,0.00025616,7]
[391005598,1760284247462,-908.68554894,0.00025616,2]
[391005599,1760284247472,-2000.0,0.00025616,2]
[391005600,1760284247481,-293.85068442,0.00025623,7]
[391005601,1760284247491,-159.287309,0.0002567,20]
[391005602,1760284247500,-158.926823,0.0002567,20]
[391005603,1760284247511,-666.66666667,0.00025684,20]
[391005604,1760284247520,-666.66666667,0.00025684,20]
[391005605,1760284247636,-666.66666667,0.00025684,20]
[391005606,1760284247646,-1558.07427699,0.000257,2]
[391005607,1760284247655,-1702.85527968,0.000257,2]
[391005608,1760284247664,-7480.77267243,0.000257,2]
[391005609,1760284247673,-159.287309,0.00025724,30]
[391005610,1760284247683,-158.926823,0.00025724,30]
[391005611,1760284247692,-500.0,0.0002573,5]
[391005612,1760284247701,-675.14,0.00025753,9]
[391005613,1760284247710,-159.287309,0.00025753,9]
[391005614,1760284247719,-158.926823,0.00025753,9]
[391005615,1760284247729,-158.926823,0.00025753,9]
[391005616,1760284247739,-350.0,0.00025753,2]
[391005617,1760284247748,-5000.0,0.00025764,2]
[391005618,1760284247757,-402.0648882,0.00025778,2]
[391005619,1760284247766,-1008.01286622,0.000258,2]
[391005620,1760284247776,-600.67888213,0.00025816,2]
[391005621,1760284247786,-187.82826925,0.00025821,2]
[391005622,1760284247795,-159.287309,0.00025822,2]
[391005623,1760284247804,-158.926823,0.00025822,2]
[391005624,1760284247814,-666.66666667,0.00025831,22]
[391005625,1760284247823,-666.66666667,0.00025831,22]
[391005626,1760284247832,-156.61599044,0.00025881,7]
[391005627,1760284247842,-1558.07427699,0.000259,2]
[391005628,1760284247852,-1702.85527968,0.000259,2]
[391005629,1760284247861,-7480.77267243,0.000259,2]
[391005630,1760284247870,-297.8851395,0.00025945,2]
[391005631,1760284247880,-297.8851395,0.00025945,2]
[391005632,1760284247889,-315.1310296,0.00025945,2]
[391005633,1760284247898,-189.7609727,0.00025945,2]
[391005634,1760284247908,-595.770279,0.00025945,2]
[391005635,1760284247918,-162.8757457,0.00025945,2]
[391005636,1760284247927,-153.0,0.00025945,2]
[391005637,1760284247935,-325.7514914,0.00025945,2]
[391005638,1760284247945,-153.0,0.00025945,2]
[391005639,1760284247955,-297.8851395,0.00025945,2]
[391005640,1760284247966,-162.8757457,0.00025945,2]
[391005641,1760284247975,-153.0,0.00025945,2]
[391005642,1760284247984,-297.8851395,0.00025945,2]
[391005643,1760284247993,-162.9132687,0.00025945,2]
[391005644,1760284248002,-588.4106815,0.00025945,2]
[391005645,1760284248012,-153.0,0.00025945,2]
[391005646,1760284248021,-588.4106815,0.00025945,2]
[391005647,1760284248032,-588.537303,0.00025945,2]
[391005648,1760284248042,-516.7273219,0.00025972,2]
[391005649,1760284248050,-666.66666667,0.00025977,24]
[391005650,1760284248059,-2719.33,0.00026,60]
[391005651,1760284248071,-1300.56405028,0.00026,60]
[391005652,1760284248080,-8614.18509749,0.00026,60]
[391005653,1760284248090,-160.0,0.00026,7]
[391005654,1760284248099,-500.0,0.00026004,5]
[391005655,1760284248108,-864.0,0.0002601,20]
[391005656,1760284248117,-500.0,0.00026013,7]
[391005657,1760284248127,-13660.61,0.00026027,2]
[391005658,1760284248137,-675.14,0.00026027,10]
[391005659,1760284248146,-4325.96917435,0.00026067,2]
[391005660,1760284248155,-760.0,0.00026113,2]
[391005661,1760284248164,-666.66666667,0.00026124,26]
[391005662,1760284248176,-2500.0,0.00026164,2]
[391005663,1760284248187,-250.0,0.00026189,2]
[391005664,1760284248196,-1558.07427699,0.000262,2]
[391005665,1760284248206,-1702.85527968,0.000262,2]
[391005666,1760284248216,-7480.77267243,0.000262,2]
[391005667,1760284248225,-159.287309,0.00026266,7]
[391005668,1760284248235,-158.926823,0.00026266,7]
[391005669,1760284248244,-3238.26,0.00026267,2]
[391005670,1760284248254,-666.66666667,0.0002627,28]
[391005671,1760284248263,-500.0,0.00026278,5]
[391005672,1760284248273,-675.14,0.00026301,11]
[391005673,1760284248283,-450.0,0.00026301,2]
[391005674,1760284248292,-1558.07427699,0.000264,2]
[391005675,1760284248302,-1702.85527968,0.000264,2]
[391005676,1760284248311,-7480.77267243,0.000264,2]
[391005677,1760284248320,-1076.74101619,0.000264,2]
[391005678,1760284248329,-162.51263029,0.00026417,30]
[391005679,1760284248339,-159.287309,0.0002643,2]
[391005680,1760284248348,-158.926823,0.0002643,2]
[391005681,1760284248358,-500.0,0.0002653,7]
[391005682,1760284248367,-500.0,0.00026552,5]
[391005683,1760284248377,-675.14,0.00026575,12]
[391005684,1760284248386,-139967.06234534,0.000266,7]
[391005685,1760284248408,-1459.581874,0.000249,7]
[391005686,1760284248417,-10470.75254804,0.000266,7]
[391005687,1760284248429,-8860.17510662,0.000266,7]
[391005688,1760284248442,-2510.7051149,0.000266,2]
[391005689,1760284248451,-500.0,0.00026622,7]
[391005690,1760284248461,-500.0,0.00026624,2]
[391005691,1760284248471,-280.0,0.00026661,2]
[391005692,1760284248482,-970.121669,0.00026676,2]
[391005693,1760284248492,-500.0,0.00026699,7]
[391005694,1760284248501,-3000.0,0.00026712,2]
[391005695,1760284248514,-500.0,0.00026725,7]
[391005696,1760284248524,-500.0,0.00026778,7]
[391005697,1760284248535,-500.0,0.00026826,5]
[391005698,1760284248544,-675.14,0.00026849,13]
[391005699,1760284248554,-550.0,0.00026849,2]
[391005700,1760284248563,-500.0,0.00026862,2]
[391005701,1760284248572,-262.337852,0.00026911,2]
[391005702,1760284248583,-500.0,0.00026917,7]
[391005703,1760284248592,-500.0,0.00026925,7]
[391005704,1760284248601,-154.2,0.00026928,30]
[391005705,1760284248611,-500.0,0.0002694,7]
[391005706,1760284248621,-199.74851764,0.00027,60]
[391005707,1760284248632,-22121.77871581,0.00027,60]
[391005708,1760284248764,-1459.581874,0.00024,7]
[391005709,1760284248774,-1459.581874,0.00024,7]
[391005710,1760284248785,-1063.8594862,0.0002415,7]
[391005711,1760284248879,-1459.581874,0.00024,7]
[391005712,1760284248888,-1459.581874,0.00024,7]
[391005713,1760284248898,-151.0,0.00024,7]
[391005714,1760284248908,-151.0,0.00024,7]
[391005715,1760284248919,-395.7223878,0.0002415,7]
[391005716,1760284248929,-1459.581874,0.0002415,7]
[391005717,1760284248938,-151.0,0.0002415,7]
[391005718,1760284248947,-1459.581874,0.000249,7]
[391005719,1760284248957,-1459.581874,0.000249,7]
[391005720,1760284248967,-1459.581874,0.00025479,7]
[391005721,1760284248976,-1459.581874,0.00025479,7]
[391005722,1760284248986,-979.07647867,0.00025479,7]
[391005723,1760284248997,-480.50540533,0.00025479,7]
[391005724,1760284249008,-1394.15564046,0.00027,60]
[391005725,1760284249029,-333.16070635,0.00027,60]
[391005726,1760284249039,-244.0,0.00027,90]
[391005727,1760284249049,-1145.46916616,0.00027,2]
[391005728,1760284249058,-500.0,0.00027023,7]
[391005729,1760284249067,-500.0,0.00027026,7]
[391005730,1760284249076,-500.0,0.000271,5]
[391005731,1760284249086,-823.0,0.00027104,2]
[391005732,1760284249096,-675.14,0.00027123,14]
[391005733,1760284249105,-275.64033699,0.00027123,2]
[391005734,1760284249176,-2104.5,0.0002429,10]
[391005735,1760284249186,-151.0,0.000249,7]
[391005736,1760284249196,-116.27949021,0.00027123,2]
[391005737,1760284249205,-500.0,0.00027138,7]
[391005738,1760284249215,-3598.06,0.00027173,2]
[391005739,1760284249224,-160.0,0.00027185,7]
[391005740,1760284249234,-3500.0,0.0002726,2]
[391005741,1760284249244,-500.0,0.00027321,7]
[391005742,1760284249253,-500.0,0.00027323,7]
[391005743,1760284249262,-560.2140343,0.00027346,2]
[391005744,1760284249272,-500.0,0.00027374,5]
[391005745,1760284249284,-13660.61,0.00027397,4]
[391005746,1760284249382,-500.0,0.00027397,60]
[391005747,1760284249391,-500.0,0.00027397,60]
[391005748,1760284249401,-500.0,0.00027397,60]
[391005749,1760284249410,-500.0,0.00027397,60]
[391005750,1760284249419,-500.0,0.00027397,60]
[391005751,1760284249428,-500.0,0.00027397,60]
[391005752,1760284249442,-500.0,0.00027397,60]
[391005753,1760284249451,-500.0,0.00027397,60]
[391005754,1760284249460,-500.0,0.00027397,60]
[391005755,1760284249469,-500.0,0.00027397,60]
[391005756,1760284249481,-500.0,0.00027397,60]
[391005757,1760284249490,-500.0,0.00027397,60]
[391005758,1760284249499,-500.0,0.00027397,60]
[391005759,1760284249509,-500.0,0.00027397,60]
[391005760,1760284249518,-500.0,0.00027397,60]
[391005761,1760284249528,-500.0,0.00027397,60]
[391005762,1760284249538,-500.0,0.00027397,60]
[391005763,1760284249547,-500.0,0.00027397,60]
[391005764,1760284249556,-500.0,0.00027397,60]
[391005765,1760284249566,-295.6661961,0.00027397,60]
[391005766,1760284249576,-510.63450437,0.00027397,60]
[391005767,1760284249585,-500.0,0.00027397,60]
[391005768,1760284249595,-500.0,0.00027397,60]
[391005769,1760284249604,-500.0,0.00027397,60]
[391005770,1760284249613,-500.0,0.00027397,60]
[391005771,1760284249623,-500.0,0.00027397,60]
[391005772,1760284249632,-500.0,0.00027397,60]
[391005773,1760284249642,-500.0,0.00027397,60]
[391005774,1760284249651,-500.0,0.00027397,60]
[391005775,1760284249661,-500.0,0.00027397,60]
[391005776,1760284249671,-500.0,0.00027397,60]
[391005777,1760284249680,-500.0,0.00027397,60]
[391005778,1760284249689,-500.0,0.00027397,60]
[391005779,1760284249699,-500.0,0.00027397,60]
[391005780,1760284249708,-500.0,0.00027397,60]
[391005781,1760284249718,-500.0,0.00027397,60]
[391005782,1760284249728,-500.0,0.00027397,60]
[391005783,1760284249740,-500.0,0.00027397,60]
[391005784,1760284249749,-500.0,0.00027397,60]
[391005785,1760284249758,-616.80808269,0.00027397,60]
[391005786,1760284249767,-500.0,0.00027397,2]
[391005787,1760284249778,-500.0,0.00027397,2]
[391005788,1760284249788,-500.0,0.00027397,2]
[391005789,1760284249798,-500.0,0.00027397,2]
[391005790,1760284249807,-500.0,0.00027397,2]
[391005791,1760284249816,-471.12464822,0.00027397,2]
[391005792,1760284249826,-500.12415705,0.00027397,2]
[391005793,1760284249835,-500.20853287,0.00027397,2]
[391005794,1760284249845,-244.73271052,0.00027397,60]
[391005795,1760284249854,-3766.35,0.00027397,60]
[391005796,1760284249865,-3766.35,0.00027397,60]
[391005797,1760284249874,-3766.35,0.00027397,60]
[391005798,1760284249887,-3766.35,0.00027397,60]
[391005799,1760284249896,-3766.35,0.00027397,60]
[391005800,1760284249905,-3766.35,0.00027397,60]
[391005801,1760284249915,-3766.35,0.00027397,60]
[391005802,1760284249924,-3766.35,0.00027397,60]
[391005803,1760284249934,-3766.35,0.00027397,60]
[391005804,1760284249944,-3766.35,0.00027397,60]
[391005805,1760284249954,-3766.35,0.00027397,60]
[391005806,1760284249963,-3766.35,0.00027397,60]
[391005807,1760284249972,-3766.35,0.00027397,60]
[391005808,1760284249982,-3766.35,0.00027397,60]
[391005809,1760284249991,-3766.35,0.00027397,60]
[391005810,1760284250000,-3766.35,0.00027397,60]
[391005811,1760284250010,-3766.35,0.00027397,60]
[391005812,1760284250019,-3766.35,0.00027397,60]
[391005813,1760284250028,-3766.35,0.00027397,60]
[391005814,1760284250038,-3766.35,0.00027397,60]
[391005815,1760284250047,-3766.35,0.00027397,60]
[391005816,1760284250056,-3766.35,0.00027397,60]
[391005817,1760284250065,-3766.35,0.00027397,60]
[391005818,1760284250075,-3766.46141216,0.00027397,60]
[391005819,1760284250085,-2310.6,0.00027397,60]
[391005820,1760284250094,-2310.6,0.00027397,60]
[391005821,1760284250103,-2310.6,0.00027397,60]
[391005822,1760284250112,-2310.6,0.00027397,60]
[391005823,1760284250121,-2310.6,0.00027397,60]
[391005824,1760284250131,-591.12,0.00027397,60]
[391005825,1760284250140,-2310.6,0.00027397,60]
[391005826,1760284250149,-591.12,0.00027397,60]
[391005827,1760284250159,-2310.6,0.00027397,60]
[391005828,1760284250168,-591.12,0.00027397,60]
[391005829,1760284250177,-2310.6,0.00027397,60]
[391005830,1760284250187,-591.12,0.00027397,60]
[391005831,1760284250197,-2310.6,0.00027397,60]
[391005832,1760284250207,-591.12,0.00027397,60]
[391005833,1760284250216,-2310.6,0.00027397,60]
[391005834,1760284250226,-2310.6,0.00027397,60]
[391005835,1760284250236,-591.12,0.00027397,60]
[391005836,1760284250247,-2310.6,0.00027397,60]
[391005837,1760284250257,-591.12,0.00027397,60]
[391005838,1760284250266,-2310.6,0.00027397,60]
[391005839,1760284250277,-591.12,0.00027397,60]
[391005840,1760284250289,-2310.6,0.00027397,60]
[391005841,1760284250299,-591.12,0.00027397,60]
[391005842,1760284250309,-2310.6,0.00027397,60]
[391005843,1760284250318,-591.12,0.00027397,60]
[391005844,1760284250328,-2310.6,0.00027397,60]
[391005845,1760284250338,-591.12,0.00027397,60]
[391005846,1760284250347,-2310.6,0.00027397,60]
[391005847,1760284250356,-591.12,0.00027397,60]
[391005848,1760284250365,-2310.6,0.00027397,60]
[391005849,1760284250375,-591.12,0.00027397,60]
[391005850,1760284250384,-2310.6,0.00027397,60]
[391005851,1760284250394,-591.12,0.00027397,60]
[391005852,1760284250403,-2310.6,0.00027397,60]
[391005853,1760284250413,-591.12,0.00027397,60]
[391005854,1760284250422,-2310.6,0.00027397,60]
[391005855,1760284250433,-591.12,0.00027397,60]
[391005856,1760284250444,-2310.6,0.00027397,60]
[391005857,1760284250454,-591.12,0.00027397,60]
[391005858,1760284250463,-2310.6,0.00027397,60]
[391005859,1760284250473,-2310.67737848,0.00027397,60]
[391005860,1760284250482,-591.12,0.00027397,60]
[391005861,1760284250492,-591.12,0.00027397,60]
[391005862,1760284250501,-591.12,0.00027397,60]
[391005863,1760284250513,-591.12,0.00027397,60]
[391005864,1760284250523,-591.12,0.00027397,60]
[391005865,1760284250537,-591.12,0.00027397,60]
[391005866,1760284250547,-591.34833876,0.00027397,60]
[391005867,1760284250557,-500.0,0.00027397,60]
[391005868,1760284250566,-500.0,0.00027397,60]
[391005869,1760284250575,-500.0,0.00027397,2]
[391005870,1760284250585,-500.0,0.00027397,2]
[391005871,1760284250594,-500.0,0.00027397,2]
[391005872,1760284250604,-500.0,0.00027397,2]
[391005873,1760284250613,-379.73221293,0.00027397,2]
[391005874,1760284250623,-520.0,0.00027397,3]
[391005875,1760284250632,-520.0,0.00027397,3]
[391005876,1760284250642,-650.56478143,0.00027397,3]
[391005877,1760284250651,-675.14,0.00027397,15]
[391005878,1760284250661,-1033.34633839,0.00027397,2]
[391005879,1760284250671,-748.54,0.00027397,2]
[391005880,1760284250680,-748.54,0.00027397,2]
[391005881,1760284250690,-748.54,0.00027397,2]
[391005882,1760284250700,-748.54,0.00027397,2]
[391005883,1760284250709,-748.54,0.00027397,2]
[391005884,1760284250719,-748.54,0.00027397,2]
[391005885,1760284250729,-748.54,0.00027397,2]
[391005886,1760284250738,-748.54,0.00027397,2]
[391005887,1760284250747,-748.54,0.00027397,2]
[391005888,1760284250757,-748.54,0.00027397,2]
[391005889,1760284250767,-748.54,0.00027397,2]
[391005890,1760284250776,-748.54,0.00027397,2]
[391005891,1760284250790,-748.54,0.00027397,2]
[391005892,1760284250800,-748.54,0.00027397,2]
[391005893,1760284250809,-748.54,0.00027397,2]
[391005894,1760284250819,-748.54,0.00027397,2]
[391005895,1760284250829,-748.54,0.00027397,2]
[391005896,1760284250839,-748.54,0.00027397,2]
[391005897,1760284250848,-748.54,0.00027397,2]
[391005898,1760284250858,-748.54,0.00027397,2]
[391005899,1760284250868,-748.54,0.00027397,2]
[391005900,1760284250877,-748.54,0.00027397,2]
[391005901,1760284250887,-748.54,0.00027397,2]
[391005902,1760284250896,-748.57,0.00027397,2]
[391005903,1760284250905,-1000.0,0.00027397,2]
[391005904,1760284250916,-1000.0,0.00027397,2]
[391005905,1760284250926,-1000.0,0.00027397,2]
[391005906,1760284250935,-1000.0,0.00027397,2]
[391005907,1760284250944,-1000.0,0.00027397,2]
[391005908,1760284250953,-1000.0,0.00027397,2]
[391005909,1760284250963,-1000.0,0.00027397,2]
[391005910,1760284250972,-199.19192341,0.00027397,2]
[391005911,1760284250982,-10000.0,0.00027397,2]
[391005912,1760284250992,-9387.0,0.00027397,2]
[391005913,1760284251002,-650.0,0.00027397,5]
[391005914,1760284251011,-189.44634393,0.00027397,2]
[391005915,1760284251021,-500.3648731,0.00027397,5]
[391005916,1760284251033,-150.0,0.00027397,5]
[391005917,1760284251043,-3030.97,0.000274,2]
[391005918,1760284251053,-6954.26,0.000274,2]
[391005919,1760284251145,-4197.0,0.00027454,2]
[391005920,1760284251155,-165.09,0.00027478,15]
[391005921,1760284251165,-155.57,0.00027482,15]
[391005922,1760284251176,-156.8,0.00027486,15]
[391005923,1760284251185,-588.4106815,0.00027534,30]
[391005924,1760284251195,-297.8851395,0.00027534,30]
[391005925,1760284251204,-165.1,0.00027578,15]
[391005926,1760284251214,-155.57,0.00027582,15]
[391005927,1760284251224,-156.8,0.00027586,15]
[391005928,1760284251234,-1214.19731613,0.000276,2]
[391005929,1760284251244,-588.4106815,0.00027644,30]
[391005930,1760284251254,-1206.1946648,0.0002765,2]
[391005931,1760284251264,-675.14,0.00027671,16]
[391005932,1760284251273,-155.57,0.00027682,15]
[391005933,1760284251287,-156.8,0.00027686,15]
[391005934,1760284251296,-503.9206388,0.00027754,7]
[391005935,1760284251306,-156.83581456,0.00027786,15]
[391005936,1760284251315,-500.0,0.00027789,7]
[391005937,1760284251326,-2533.21777468,0.00027808,5]
[391005938,1760284251335,-155.57,0.00027819,15]
[391005939,1760284251345,-2840.70864809,0.0002785,60]
[391005940,1760284251354,-1000.0,0.00027873,5]
[391005941,1760284251364,-292.09188,0.000279,120]
[391005942,1760284251373,-159297.99,0.000279,7]
[391005943,1760284251383,-198.0,0.0002791,19]
[391005944,1760284251392,-155.57,0.00027919,15]
[391005945,1760284251402,-500.0,0.00027922,7]
[391005946,1760284251412,-675.14,0.00027945,17]
[391005947,1760284251424,-750.0,0.00027945,5]
[391005948,1760284251437,-250.0,0.00027945,5]
[391005949,1760284251447,-981.0,0.00027964,2]
[391005950,1760284251458,-630.0,0.00027964,2]
[391005951,1760284251468,-2158.0,0.00027964,2]
[391005952,1760284251479,-150.0,0.00027964,2]
[391005953,1760284251490,-10322.31590394,0.00028,5]
[391005954,1760284251500,-200.0,0.00028,120]
[391005955,1760284251516,-110625.86253306,0.00028,7]
[391005956,1760284251537,-889374.13746694,0.00028,7]
[391005957,1760284251547,-2001.43,0.00028,7]
[391005958,1760284251557,-3000.0,0.00028,120]
[391005959,1760284251566,-155.57,0.00028019,15]
[391005960,1760284251575,-157.0,0.000281,120]
[391005961,1760284251585,-158.926823,0.00028117,60]
[391005962,1760284251594,-155.57,0.00028119,15]
[391005963,1760284251604,-500.0,0.00028158,7]
[391005964,1760284251614,-500.0,0.00028193,7]
[391005965,1760284251623,-1282.9254661,0.000282,2]
[391005966,1760284251632,-308.41,0.00028211,30]
[391005967,1760284251641,-675.14,0.00028219,18]
[391005968,1760284251651,-155.57,0.00028219,15]
[391005969,1760284251661,-4325.96917435,0.00028233,2]
[391005970,1760284251671,-402.0648882,0.000283,2]
[391005971,1760284251690,-560.56908521,0.00028301,7]
[391005972,1760284251701,-155.57,0.00028319,15]
[391005973,1760284251714,-501.66977436,0.00028359,7]
[391005974,1760284251724,-155.57,0.00028419,15]
[391005975,1760284251734,-159.287309,0.00028475,60]
[391005976,1760284251744,-158.926823,0.00028475,60]
[391005977,1760284251754,-675.14,0.00028493,19]
[391005978,1760284251764,-850.0,0.00028493,5]
[391005979,1760284251774,-350.0,0.00028493,5]
[391005980,1760284251786,-60855.70397969,0.000285,7]
[391005981,1760284251796,-155.57,0.00028519,15]
[391005982,1760284251805,-3030.97,0.000286,2]
[391005983,1760284251815,-6954.26,0.000286,2]
[391005984,1760284251825,-1000.0,0.0002861,30]
[391005985,1760284251835,-155.57,0.00028619,15]
[391005986,1760284251846,-301.7132,0.0002867,120]
[391005987,1760284251860,-516.7273219,0.00028688,2]
[391005988,1760284251874,-155.57,0.00028719,15]
[391005989,1760284251883,-982.1980645,0.0002876,2]
[391005990,1760284251891,-13660.61,0.00028767,6]
[391005991,1760284251901,-675.14,0.00028767,20]
[391005992,1760284251911,-336.99143048,0.00028775,120]
[391005993,1760284251920,-292.09188,0.000288,120]
[391005994,1760284251929,-1351.65361607,0.000288,2]
[391005995,1760284251939,-155.57,0.00028819,15]
[391005996,1760284251949,-159.287309,0.00028834,60]
[391005997,1760284251958,-158.926823,0.00028834,60]
[391005998,1760284251968,-155.57,0.00028919,15]
[391005999,1760284251977,-2202.79222726,0.0002899,2]
[391006000,1760284251986,-763215.53832201,0.00029,120]
[391006001,1760284265726,10000.01,0.00020972,2]
[391006002,1760284265752,10000.01,0.00020972,2]
[391006003,1760284265778,10000.01,0.00020972,2]
[391006004,1760284265806,10000.01,0.00020972,2]
[391006005,1760284265832,10000.01,0.00020972,2]
[391006006,1760284265860,10000.01,0.00020972,2]
[391006007,1760284265885,10000.01,0.00020972,2]
[391006008,1760284265910,10000.01,0.00020972,2]
[391006009,1760284265936,10000.01,0.00020972,2]
[391006010,1760284265962,10000.01,0.00020972,2]
[391006011,1760284273896,-272.01883202,0.00020962,10]
[391006012,1760284276762,-455.9950664,0.00020962,10]
[391006013,1760284279355,-156.76143765,0.00020962,10]
[391006014,1760284281022,-868.97466393,0.00020962,10]